bitfinex-derivatives/quotes_SOLF0:USTF0_20250909
["timestamp","ask_amount","ask_price","bid_price","bid_amount"]
[1757384186878,7.31,212.78,212.67,2.8]
[1757384188476,7.31,212.78,212.67,5.47200311]
[1757384188675,7.31,212.78,212.68,2.8]
[1757384192770,7.31,212.78,212.67,2.67200311]
[1757384193675,7.31,212.75,212.64,2.79]
[1757384193876,7.31,212.72,212.63,2.67200311]
[1757384194986,7.31,212.72,212.61,2.79]
[1757384196684,12.58536891,212.72,212.61,2.79]
[1757384198485,7.31,212.7,212.61,2.79]
[1757384201387,12.58536891,212.7,212.61,2.79]
[1757384201686,5.27536891,212.68,212.57,120.76200311]
[1757384201882,7.31,212.66,212.57,120.76200311]
[1757384204385,7.31,212.66,212.57,117.97200311]
[1757384204589,7.31,212.66,212.58,2.78]
[1757384205686,14.59,212.65,212.39,3.91243407]
[1757384205985,7.94737202,212.63,212.49,10.30200311]
[1757384206187,18.4,212.62,212.49,10.30200311]
[1757384206387,133.12,212.61,212.49,10.30200311]
[1757384206587,2.67200311,212.63,212.49,10.30200311]
[1757384206786,2.67200311,212.6,212.49,10.30200311]
[1757384206987,2.67200311,212.6,212.46,2.67200311]
[1757384207193,2.67200311,212.57,212.44,2.67200311]
[1757384207490,2.67200311,212.57,212.42,7.63]
[1757384208086,2.67200311,212.5,212.42,7.63]
[1757384215499,5.58,212.56,212.42,7.63]
[1757384215694,2.67200311,212.52,212.42,7.63]
[1757384217207,5.27536891,212.59,212.42,7.63]
[1757384217399,2.67200311,212.53,212.42,7.63]
[1757384218502,2.67200311,212.54,212.42,7.63]
[1757384218704,2.67200311,212.54,212.44,7.63]
[1757384221908,2.67200311,212.55,212.44,7.63]
[1757384222801,2.67200311,212.58,212.47,7.63]
[1757384223007,5.27536891,212.62,212.47,7.63]
[1757384223208,2.67200311,212.58,212.47,7.63]
[1757384224609,2.67200311,212.58,212.47,10.30200311]
[1757384225709,2.67200311,212.58,212.47,7.63]
[1757384227798,7.94737202,212.58,212.47,7.63]
[1757384228403,5.27536891,212.59,212.47,2.67200311]
[1757384228614,134.69200311,212.6,212.48,7.63]
[1757384229109,2.67200311,212.6,212.48,7.63]
[1757384229502,7.94737202,212.6,212.48,7.63]
[1757384229702,134.79200311,212.6,212.48,7.63]
[1757384230107,2.67200311,212.6,212.48,7.63]
[1757384230303,140.00737202,212.6,212.48,7.63]
[1757384231405,7.94737202,212.6,212.48,7.63]
[1757384232606,5.27536891,212.6,212.5,2.67200311]
[1757384232813,7.94737202,212.62,212.51,7.63]
[1757384234108,7.94737202,212.62,212.39,0.81916083]
[1757384234109,10.18200311,212.53,212.39,2.67200311]
[1757384234306,1.71668053,212.51,212.42,1.71668053]
[1757384234504,7.51,212.5,212.42,1.71668053]
[1757384234911,1.71668053,212.47,212.39,1.71668053]
[1757384235208,1.71668053,212.47,212.37,1.71668053]
[1757384235410,7.51,212.5,212.37,1.71668053]
[1757384235613,1.71668053,212.46,212.37,1.71668053]
[1757384236008,1.71668053,212.46,212.39,1.71668053]
[1757384236709,1.71668053,212.5,212.42,7.42]
[1757384236908,12.78536891,212.54,212.44,7.42]
[1757384237406,1.71668053,212.52,212.44,7.42]
[1757384237607,5.27536891,212.55,212.46,7.42]
[1757384237807,190.13581932,212.58,212.48,7.42]
[1757384237808,1.71668053,212.56,212.48,7.42]
[1757384238013,1.71668053,212.56,212.5,7.42]
[1757384238606,184.34249985,212.58,212.52,7.42]
[1757384239012,1.71668053,212.56,212.5,7.42]
[1757384239609,182.62581932,212.58,212.52,7.42]
[1757384239811,1.71668053,212.59,212.52,7.42]
[1757384241510,1.71668053,212.6,212.54,7.42]
[1757384242914,1.71668053,212.58,212.5,1.71668053]
[1757384243111,1.71668053,212.56,212.5,7.42]
[1757384243313,1.71668053,212.54,212.5,7.42]
[1757384243505,9.22668053,212.54,212.47,7.42]
[1757384243906,1.71668053,212.52,212.46,9.13668053]
[1757384244616,1.71668053,212.52,212.46,7.42]
[1757384245815,1.71668053,212.52,212.48,7.42]
[1757384247118,5.27536891,212.55,212.49,1.71668053]
[1757384247418,5.27536891,212.58,212.52,7.42]
[1757384247617,6.99204944,212.59,212.52,7.42]
[1757384247818,6.99204944,212.59,212.53,1.71668053]
[1757384247819,5.27536891,212.58,212.53,1.71668053]
[1757384248020,5.27536891,212.58,212.54,7.42]
[1757384249415,5.27536891,212.58,212.56,7.42]
[1757384250018,5.27536891,212.58,212.55,1.71668053]
[1757384250214,5.27536891,212.57,212.56,7.42]
[1757384250419,7.914554,212.6,212.56,7.42]
[1757384250420,5.27536891,212.6,212.56,7.42]
[1757384250621,5.27536891,212.63,212.59,1.71668053]
[1757384251114,5.27536891,212.63,212.61,9.13668053]
[1757384251314,12.78536891,212.63,212.58,1.71668053]
[1757384251521,5.27536891,212.62,212.58,1.71668053]
[1757384251717,5.27536891,212.62,212.58,9.13668053]
[1757384252115,5.27536891,212.62,212.58,1.71668053]
[1757384252617,5.27536891,212.62,212.59,7.42]
[1757384252818,5.27536891,212.63,212.59,7.42]
[1757384254822,5.27536891,212.63,212.55,7.42]
[1757384255121,5.27536891,212.63,212.59,7.42]
[1757384255717,5.27536891,212.63,212.6,1.71668053]
[1757384256022,5.27536891,212.65,212.62,9.13668053]
[1757384256421,12.78536891,212.66,212.62,9.13668053]
[1757384257623,12.78536891,212.66,212.62,7.42]
[1757384257922,12.78536891,212.66,212.63,1.71668053]
[1757384258621,5.27536891,212.67,212.65,1.71668053]
[1757384258825,12.78536891,212.68,212.64,9.13668053]
[1757384259026,12.81533247,212.68,212.64,9.16821364]
[1757384259523,7.53996356,212.68,212.64,9.16821364]
[1757384261329,0.02996356,212.68,212.64,9.16821364]
[1757384262330,0.02996356,212.68,212.65,7.42]
[1757384262624,0.02996356,212.68,212.67,7.42]
[1757384271429,0.02996356,212.68,212.67,93.86]
[1757384277436,0.02996356,212.68,212.67,7.42]
[1757384277633,0.02996356,212.68,212.67,92.06]
[1757384279741,0.02996356,212.68,212.67,137.7]
[1757384280639,0.02996356,212.68,212.67,7.42]
[1757384280835,0.02996356,212.68,212.67,137.54]
[1757384281237,0.02996356,212.68,212.67,7.42]
[1757384281541,0.02996356,212.68,212.67,139.15668053]
[1757384281935,0.02996356,212.68,212.67,7.42]
[1757384282140,0.02996356,212.68,212.67,131.65668053]
[1757384282638,0.02996356,212.68,212.67,139.38668053]
[1757384282844,0.02996356,212.68,212.67,9.44668053]
[1757384283043,0.02996356,212.68,212.67,131.53668053]
[1757384283436,0.02996356,212.68,212.67,139.26668053]
[1757384284240,0.02996356,212.68,212.67,139.10668053]
[1757384284443,0.02996356,212.68,212.67,9.44668053]
[1757384284840,0.02996356,212.68,212.67,139.06668053]
[1757384287838,5.27536891,212.75,212.67,139.06668053]
[1757384288047,5.27536891,212.75,212.73,1.71668053]
[1757384288251,12.60536891,212.75,212.73,130.89668053]
[1757384290951,12.60536891,212.75,212.73,128.82]
[1757384291350,5.27536891,212.74,212.73,128.82]
[1757384292353,7.33,212.75,212.73,128.82]
[1757384293652,7.33,212.75,212.73,136.55]
[1757384293844,7.914554,212.76,212.73,138.26668053]
[1757384294452,7.914554,212.76,212.73,136.55]
[1757384294855,15.564554,212.76,212.73,136.55]
[1757384295858,5.25099764,212.74,212.73,136.55]
[1757384296557,5.25099764,212.74,212.73,7.73]
[1757384296756,5.25099764,212.74,212.73,111.15]
[1757384297354,7.65,212.73,212.61,7.73]
[1757384297561,7.65,212.73,212.47,14.12]
[1757384297562,5.25139265,212.66,212.6,7.73]
[1757384297760,12.90139265,212.63,212.6,7.73]
[1757384297955,5.25139265,212.62,212.58,7.73]
[1757384298260,5.25139265,212.61,212.58,137.25]
[1757384298462,5.25139265,212.61,212.59,7.73]
[1757384298957,5.25139265,212.62,212.59,137.25]
[1757384299365,5.25139265,212.61,212.59,137.25]
[1757384299666,5.25139265,212.62,212.59,137.13]
[1757384300867,5.25139265,212.61,212.59,137.13]
[1757384302375,5.25139265,212.62,212.59,137.13]
[1757384302570,12.90139265,212.62,212.59,7.73]
[1757384302866,5.25139265,212.61,212.59,7.73]
[1757384303974,5.25139265,212.61,212.58,128.98]
[1757384304166,5.25139265,212.61,212.59,7.73]
[1757384305273,5.25139265,212.61,212.59,136.67]
[1757384305570,5.25139265,212.62,212.59,136.67]
[1757384305767,10.32500931,212.62,212.54,7.73]
[1757384305966,7.65,212.58,212.47,7.73]
[1757384306172,7.65,212.58,212.49,7.73]
[1757384307268,7.65,212.58,212.51,7.73]
[1757384308775,7.65,212.58,212.52,128.56]
[1757384309370,7.65,212.58,212.52,128.32]
[1757384309876,7.65,212.58,212.52,128.24]
[1757384310473,7.65,212.58,212.52,135.97]
[1757384317574,7.65,212.58,212.52,128.24]
[1757384317784,7.65,212.58,212.53,7.73]
[1757384318182,7.65,212.58,212.52,128.24]
[1757384318583,7.65,212.58,212.53,7.73]
[1757384318786,7.65,212.58,212.52,128.24]
[1757384318984,7.65,212.58,212.53,7.73]
[1757384319385,7.65,212.58,212.52,128.24]
[1757384319386,10.32500931,212.59,212.52,135.97]
[1757384320685,10.32500931,212.59,212.52,134.85]
[1757384320888,2.67500931,212.63,212.53,7.73]
[1757384321283,15.57640196,212.68,212.55,7.73]
[1757384321484,15.57640196,212.68,212.56,7.73]
[1757384321687,10.32500931,212.68,212.58,7.73]
[1757384322381,15.57640196,212.68,212.58,7.73]
[1757384322887,10.32500931,212.68,212.58,7.73]
[1757384323283,15.57640196,212.68,212.58,55.95]
[1757384323582,15.57640196,212.68,212.58,104.31]
[1757384324487,15.57640196,212.68,212.58,7.73]
[1757384324687,15.57640196,212.68,212.58,134.51]
[1757384324989,12.90139265,212.68,212.59,7.16]
[1757384325190,7.65,212.68,212.59,7.16]
[1757384326388,7.65,212.68,212.61,2.67500931]
[1757384326589,5.25139265,212.7,212.62,7.16]
[1757384326990,5.25139265,212.71,212.62,7.16]
[1757384327187,7.54,212.72,212.62,7.16]
[1757384327384,7.54,212.72,212.64,2.67500931]
[1757384327589,7.54,212.72,212.65,7.16]
[1757384328395,5.25139265,212.73,212.66,0.03529289]
[1757384328692,0.03054591,212.71,212.67,7.16]
[1757384329094,0.03054591,212.71,212.66,0.03529289]
[1757384329289,0.03054591,212.71,212.67,7.16]
[1757384329496,0.03054591,212.71,212.66,0.03529289]
[1757384329686,0.03054591,212.71,212.67,7.16]
[1757384329894,0.03054591,212.71,212.66,0.03529289]
[1757384330092,0.03054591,212.71,212.67,7.16]
[1757384330294,0.03054591,212.71,212.68,7.16]
[1757384330486,0.03054591,212.71,212.67,2.67500931]
[1757384331290,0.03054591,212.71,212.68,7.16]
[1757384331997,0.03054591,212.71,212.67,2.67500931]
[1757384332200,0.03054591,212.71,212.68,7.16]
[1757384332399,0.03054591,212.71,212.67,2.67500931]
[1757384332796,0.03054591,212.71,212.68,7.16]
[1757384332995,0.03054591,212.71,212.67,2.67500931]
[1757384333298,0.03054591,212.71,212.66,0.03529289]
[1757384333299,7.54,212.7,212.66,0.03529289]
[1757384333497,7.54,212.7,212.66,7.19529289]
[1757384333894,7.54,212.7,212.66,0.03529289]
[1757384334199,7.54,212.7,212.66,7.19529289]
[1757384334994,7.54,212.7,212.67,7.16]
[1757384335197,0.03054591,212.71,212.67,7.16]
[1757384335498,0.03054591,212.71,212.66,0.03529289]
[1757384335705,0.03054591,212.71,212.67,7.16]
[1757384335901,0.03054591,212.71,212.66,0.03529289]
[1757384336102,0.03054591,212.71,212.67,7.16]
[1757384336301,0.03054591,212.71,212.66,0.03529289]
[1757384336801,0.03054591,212.71,212.67,7.16]
[1757384337002,0.03054591,212.71,212.66,0.03529289]
[1757384337192,0.03054591,212.71,212.67,7.16]
[1757384337394,0.03054591,212.71,212.66,0.03529289]
[1757384337895,7.57054591,212.71,212.67,7.16]
[1757384338096,7.57054591,212.71,212.66,0.03529289]
[1757384338294,12.82193856,212.71,212.67,7.16]
[1757384340299,7.54,212.7,212.67,7.16]
[1757384340495,7.54,212.69,212.66,0.03529289]
[1757384341002,5.25139265,212.7,212.66,0.03529289]
[1757384341205,0.03054591,212.71,212.66,0.03529289]
[1757384341398,0.03054591,212.71,212.67,7.16]
[1757384341598,0.03054591,212.71,212.66,0.03529289]
[1757384341793,0.03054591,212.71,212.67,7.16]
[1757384341994,0.03054591,212.71,212.66,0.03529289]
[1757384342703,0.03054591,212.71,212.67,7.16]
[1757384343095,0.03054591,212.71,212.66,0.03529289]
[1757384343302,7.54,212.7,212.66,0.03529289]
[1757384344105,12.79139265,212.67,212.66,0.03529289]
[1757384345903,7.54,212.67,212.66,0.03529289]
[1757384346208,12.79139265,212.67,212.66,0.03529289]
[1757384346407,7.54,212.67,212.66,0.03529289]
[1757384346704,12.79139265,212.67,212.66,0.03529289]
[1757384347307,7.54,212.67,212.66,0.03529289]
[1757384348102,12.79139265,212.67,212.66,0.03529289]
[1757384348807,7.54,212.67,212.66,0.03529289]
[1757384349303,5.25139265,212.68,212.66,7.19529289]
[1757384349501,12.82193856,212.71,212.67,7.16]
[1757384349701,0.03054591,212.71,212.67,7.16]
[1757384350508,12.82193856,212.71,212.67,7.16]
[1757384351203,7.54,212.7,212.66,0.03529289]
[1757384351707,7.54,212.7,212.66,7.19529289]
[1757384352809,5.28193856,212.71,212.66,0.03529289]
[1757384352999,0.03054591,212.71,212.67,7.16]
[1757384353199,0.03054591,212.71,212.67,7.81]
[1757384353812,0.03054591,212.71,212.66,0.03529289]
[1757384354013,0.03054591,212.71,212.67,7.81]
[1757384354208,0.03054591,212.71,212.66,0.03529289]
[1757384355011,0.03054591,212.71,212.69,7.81]
[1757384355308,0.03054591,212.71,212.68,2.67500931]
[1757384355504,0.03054591,212.71,212.69,7.81]
[1757384355811,0.03054591,212.71,212.67,2.67500931]
[1757384356407,0.03054591,212.71,212.7,9.52252184]
[1757384358814,0.03054591,212.71,212.7,7.81]
[1757384359805,0.03054591,212.71,212.69,1.71252184]
[1757384360009,7.48054591,212.71,212.67,9.52252184]
[1757384360208,0.03054591,212.71,212.66,0.03529289]
[1757384360417,7.45,212.7,212.66,7.84529289]
[1757384360613,12.70139265,212.7,212.66,7.84529289]
[1757384361609,12.70139265,212.7,212.67,7.81]
[1757384361816,5.25139265,212.7,212.67,7.81]
[1757384362214,5.28193856,212.71,212.66,0.03529289]
[1757384362413,5.25139265,212.7,212.67,9.52252184]
[1757384363317,5.25139265,212.7,212.68,7.81]
[1757384363517,5.25139265,212.7,212.67,1.71252184]
[1757384363717,5.25139265,212.7,212.67,9.52252184]
[1757384364117,5.25139265,212.7,212.68,7.81]
[1757384364920,5.28193856,212.71,212.7,7.81]
[1757384367620,0.03054591,212.71,212.7,7.81]
[1757384371521,5.29532639,212.71,212.7,7.81]
[1757384373421,12.74532639,212.71,212.68,1.71252184]
[1757384373621,5.26405138,212.7,212.68,9.52252184]
[1757384374023,5.26405138,212.7,212.69,7.81]
[1757384375725,5.26405138,212.7,212.69,9.52252184]
[1757384376026,7.90763488,212.71,212.69,9.52252184]
[1757384379028,7.90763488,212.71,212.7,7.81]
[1757384383233,0.03054591,212.71,212.7,7.81]
[1757384384430,5.29449845,212.71,212.7,7.81]
[1757384385740,0.03054591,212.71,212.7,7.81]
[1757384386341,5.26395254,212.74,212.7,7.68]
[1757384386534,5.26395254,212.74,212.73,7.68]
[1757384387641,5.26395254,212.74,212.71,7.71306655]
[1757384387842,7.39,212.75,212.73,1.71252184]
[1757384389241,7.87708897,212.76,212.73,1.71252184]
[1757384389443,7.39,212.75,212.73,1.71252184]
[1757384390439,7.87708897,212.76,212.73,1.71252184]
[1757384390637,7.39,212.75,212.73,1.71252184]
[1757384392238,15.26708897,212.75,212.73,1.71252184]
[1757384394643,7.87708897,212.75,212.73,1.71252184]
[1757384394942,15.26708897,212.75,212.73,1.71252184]
[1757384395646,7.39,212.74,212.72,0.03079389]
[1757384396142,7.39,212.73,212.72,0.03079389]
[1757384402248,15.30155133,212.73,212.72,0.03079389]
[1757384402447,7.39,212.73,212.72,0.03079389]
[1757384403442,15.30188363,212.73,212.72,0.03079389]
[1757384405851,15.30736796,212.73,212.72,0.03079389]
[1757384409251,9.10252184,212.73,212.72,0.03079389]
[1757384410352,9.58252184,212.73,212.59,7.68]
[1757384410553,5.27789732,212.64,212.62,1.71252184]
[1757384410754,7.39,212.63,212.61,1.71252184]
[1757384412753,12.66789732,212.63,212.61,1.71252184]
[1757384413053,12.66789732,212.63,212.57,7.68]
[1757384413250,12.66789732,212.63,212.6,1.71252184]
[1757384413452,7.39,212.63,212.6,1.71252184]
[1757384413747,7.6,212.6,212.59,1.71252184]
[1757384413954,5.27789732,212.6,212.57,1.71252184]
[1757384414248,7.6,212.59,212.57,1.71252184]
[1757384414855,7.6,212.6,212.53,7.83]
[1757384415053,5.27789732,212.59,212.55,1.71252184]
[1757384415254,7.6,212.58,212.55,1.71252184]
[1757384415453,5.27789732,212.6,212.55,1.71252184]
[1757384415750,5.27789732,212.57,212.53,1.71252184]
[1757384415956,7.6,212.56,212.55,0.03360764]
[1757384416152,12.87789732,212.56,212.55,0.03360764]
[1757384416348,7.6,212.56,212.55,0.03360764]
[1757384420056,7.6,212.56,212.45,7.83]
[1757384420057,8.08,212.56,212.46,2.68010368]
[1757384420254,7.57,212.53,212.46,2.68010368]
[1757384420556,7.57,212.53,212.45,10.51010368]
[1757384421157,0.03494893,212.51,212.45,10.51010368]
[1757384425258,0.03494893,212.51,212.48,2.68010368]
[1757384425453,0.03494893,212.51,212.49,7.83]
[1757384425657,0.03494893,212.51,212.48,2.68010368]
[1757384426559,0.03494893,212.51,212.49,7.83]
[1757384426759,0.03494893,212.51,212.48,2.68010368]
[1757384427961,0.03494893,212.51,212.49,7.83]
[1757384428355,0.03494893,212.51,212.48,2.68010368]
[1757384428554,0.03494893,212.51,212.48,10.51010368]
[1757384430768,0.03494893,212.51,212.48,2.68010368]
[1757384430963,0.03494893,212.51,212.48,10.51010368]
[1757384431164,0.03494893,212.51,212.48,2.68010368]
[1757384431365,0.03494893,212.51,212.49,7.83]
[1757384437768,0.03494893,212.51,212.47,2.68010368]
[1757384437973,7.57,212.5,212.47,10.51010368]
[1757384438373,7.57,212.5,212.47,7.83]
[1757384438568,0.03494893,212.51,212.46,7.83]
[1757384439076,0.03494893,212.51,212.45,123.72010368]
[1757384439373,0.03494893,212.51,212.46,7.83]
[1757384439570,0.03494893,212.51,212.45,131.55010368]
[1757384440268,0.03494893,212.51,212.45,7.83]
[1757384440474,7.62494893,212.51,212.45,7.83]
[1757384447176,0.03494893,212.51,212.45,7.83]
[1757384447571,0.03494893,212.51,212.46,2.68010368]
[1757384447874,0.03494893,212.51,212.47,7.76]
[1757384448075,0.03494893,212.51,212.46,2.68010368]
[1757384448276,0.03494893,212.51,212.47,7.76]
[1757384448581,7.47494893,212.51,212.47,7.76]
[1757384448780,7.47494893,212.51,212.46,2.68010368]
[1757384449182,7.47494893,212.51,212.47,7.76]
[1757384449577,7.47494893,212.51,212.46,2.68010368]
[1757384449973,7.47494893,212.51,212.47,7.76]
[1757384450178,7.47494893,212.51,212.46,2.68010368]
[1757384450379,7.47494893,212.51,212.47,7.76]
[1757384450580,7.47494893,212.51,212.44,2.68010368]
[1757384450781,7.47494893,212.51,212.45,7.76]
[1757384455284,12.71862813,212.51,212.45,7.76]
[1757384455875,5.2436792,212.5,212.44,2.68010368]
[1757384456483,5.2436792,212.5,212.45,7.76]
[1757384457083,5.2436792,212.5,212.44,2.68010368]
[1757384457680,5.2436792,212.5,212.45,7.76]
[1757384458082,5.2436792,212.5,212.44,2.68010368]
[1757384458386,5.2436792,212.49,212.45,7.76]
[1757384459287,5.2436792,212.48,212.45,7.76]
[1757384459480,5.2436792,212.48,212.44,2.68010368]
[1757384460082,5.2436792,212.5,212.47,2.68010368]
[1757384460284,5.27862813,212.51,212.47,2.68010368]
[1757384460484,5.2436792,212.51,212.47,2.68010368]
[1757384460792,12.6836792,212.5,212.47,10.44010368]
[1757384460984,5.2436792,212.5,212.48,7.76]
[1757384461683,7.44,212.49,212.35,7.76]
[1757384461885,5.26449851,212.48,212.43,2.68010368]
[1757384462087,5.26449851,212.47,212.44,7.76]
[1757384462783,5.26449851,212.47,212.43,2.68010368]
[1757384462983,5.26449851,212.47,212.44,7.76]
[1757384463181,12.70449851,212.47,212.44,7.76]
[1757384463391,5.26449851,212.46,212.44,7.76]
[1757384463992,5.26449851,212.46,212.43,2.68010368]
[1757384464283,12.70449851,212.47,212.44,7.76]
[1757384465388,5.26449851,212.46,212.44,7.76]
[1757384465788,5.26449851,212.45,212.44,7.76]
[1757384466089,12.70449851,212.45,212.4,2.68010368]
[1757384466490,7.44,212.45,212.41,7.76]
[1757384466683,7.47425766,212.45,212.41,7.76]
[1757384466885,0.03425766,212.45,212.41,7.76]
[1757384467084,0.03425766,212.45,212.4,2.68010368]
[1757384467790,0.03425766,212.45,212.41,7.76]
[1757384468392,0.03425766,212.45,212.4,2.68010368]
[1757384468687,0.03425766,212.45,212.41,7.76]
[1757384468889,0.03425766,212.45,212.4,2.68010368]
[1757384469090,0.03425766,212.45,212.41,7.76]
[1757384469292,0.03425766,212.45,212.4,2.68010368]
[1757384469488,5.29875617,212.45,212.41,7.76]
[1757384469984,12.73875617,212.45,212.41,7.76]
[1757384470191,12.73875617,212.45,212.39,7.76]
[1757384470379,5.29875617,212.45,212.41,7.76]
[1757384470580,5.29875617,212.45,212.4,2.68010368]
[1757384470783,12.73875617,212.45,212.4,2.68010368]
[1757384470983,12.73875617,212.45,212.41,7.76]
[1757384471193,5.29875617,212.45,212.41,7.76]
[1757384471391,7.44,212.44,212.41,7.76]
[1757384471591,7.44,212.44,212.4,2.68010368]
[1757384471888,5.29875617,212.45,212.41,7.76]
[1757384472289,12.73875617,212.45,212.4,2.68010368]
[1757384472489,12.73875617,212.45,212.41,7.76]
[1757384472787,12.73875617,212.45,212.4,2.68010368]
[1757384472986,12.73875617,212.45,212.41,7.76]
[1757384473187,12.73875617,212.45,212.41,7.26]
[1757384473892,12.48875617,212.45,212.4,2.68010368]
[1757384474093,12.48875617,212.45,212.41,7.26]
[1757384474390,12.48875617,212.45,212.4,2.68010368]
[1757384474785,12.48875617,212.45,212.41,7.26]
[1757384474992,12.48875617,212.45,212.4,2.68010368]
[1757384475586,12.48875617,212.45,212.41,7.26]
[1757384475989,7.19,212.44,212.41,7.26]
[1757384476190,7.19,212.44,212.4,2.68010368]
[1757384476989,0.03425766,212.45,212.4,2.68010368]
[1757384477191,7.22425766,212.45,212.4,2.68010368]
[1757384477793,7.22425766,212.45,212.41,7.26]
[1757384477993,7.22425766,212.45,212.4,2.68010368]
[1757384478185,7.22425766,212.45,212.41,7.26]
[1757384478391,7.22425766,212.45,212.43,1.71665239]
[1757384480392,12.48875617,212.45,212.43,1.71665239]
[1757384481697,12.48875617,212.45,212.43,8.97665239]
[1757384482099,7.22425766,212.45,212.43,8.97665239]
[1757384483489,0.03425766,212.45,212.44,7.26]
[1757384485395,0.03425766,212.45,212.43,1.71665239]
[1757384485596,12.48875617,212.45,212.43,1.71665239]
[1757384486392,7.19,212.43,212.34,43.81933441]
[1757384486695,7.19,212.43,212.36,1.71665239]
[1757384486696,5.26449851,212.38,212.36,1.71665239]
[1757384487100,5.26449851,212.38,212.36,8.97665239]
[1757384487304,5.26449851,212.39,212.36,8.97665239]
[1757384487506,12.45449851,212.39,212.36,8.97665239]
[1757384489302,7.19,212.38,212.32,323.62]
[1757384489504,5.26449851,212.37,212.33,1.71665239]
[1757384489806,7.19,212.36,212.33,1.71665239]
[1757384490503,7.19,212.36,212.32,7.26]
[1757384490809,7.19,212.36,212.32,8.97665239]
[1757384491011,5.29644049,212.37,212.32,8.97665239]
[1757384491206,7.19,212.36,212.32,8.97665239]
[1757384491511,7.19,212.35,212.29,7.26]
[1757384491709,12.45449851,212.36,212.3,1.71665239]
[1757384492408,12.45449851,212.36,212.32,1.71665239]
[1757384492604,0.03194198,212.37,212.34,1.71665239]
[1757384492799,0.03194198,212.37,212.35,7.26]
[1757384493109,7.22194198,212.37,212.34,1.71665239]
[1757384493504,7.19,212.36,212.34,1.71665239]
[1757384493812,0.03194198,212.37,212.34,1.71665239]
[1757384494310,7.19,212.36,212.34,1.71665239]
[1757384494706,0.03194198,212.37,212.34,1.71665239]
[1757384494913,7.19,212.36,212.34,1.71665239]
[1757384495101,0.03194198,212.37,212.34,1.71665239]
[1757384495301,7.19,212.36,212.34,1.71665239]
[1757384495503,0.03194198,212.37,212.32,7.26]
[1757384495807,7.19,212.36,212.33,1.71665239]
[1757384496508,0.03194198,212.37,212.33,1.71665239]
[1757384496810,7.19,212.36,212.33,1.71665239]
[1757384497512,0.03194198,212.37,212.33,1.71665239]
[1757384497809,7.19,212.36,212.33,1.71665239]
[1757384498208,7.19,212.36,212.33,8.97665239]
[1757384499306,0.03194198,212.37,212.33,8.97665239]
[1757384499511,7.19,212.36,212.33,8.97665239]
[1757384501214,7.19,212.36,212.33,1.71665239]
[1757384501411,0.03194198,212.37,212.33,1.71665239]
[1757384501610,7.19,212.36,212.32,1.71665239]
[1757384501813,0.03194198,212.37,212.32,1.71665239]
[1757384502008,7.19,212.36,212.24,0.81983627]
[1757384502313,7.22194198,212.37,212.31,1.71665239]
[1757384503013,7.19,212.36,212.15,363.52316607]
[1757384503217,7.19,212.34,212.26,7.26]
[1757384503414,7.19,212.34,212.3,8.99665239]
[1757384505013,1.74859437,212.37,212.33,8.99665239]
[1757384505014,7.61194198,212.37,212.33,8.99665239]
[1757384505716,7.58,212.36,212.33,8.99665239]
[1757384506609,0.03194198,212.37,212.34,7.28]
[1757384507017,7.61194198,212.37,212.34,7.28]
[1757384507218,7.58,212.36,212.33,1.71665239]
[1757384508116,0.03194198,212.37,212.33,8.99665239]
[1757384508316,7.61194198,212.37,212.33,8.99665239]
[1757384509517,7.58,212.36,212.33,1.71665239]
[1757384510119,7.58,212.36,212.33,8.99665239]
[1757384510516,0.03194198,212.37,212.33,1.71665239]
[1757384510717,7.58,212.36,212.33,1.71665239]
[1757384510918,0.03194198,212.37,212.34,7.28]
[1757384512014,7.61194198,212.37,212.34,7.28]
[1757384514821,0.03194198,212.37,212.28,12.0]
[1757384515020,7.58,212.36,212.33,1.71665239]
[1757384515324,7.58,212.36,212.33,8.99665239]
[1757384517227,7.58,212.36,212.33,7.28]
[1757384518224,7.58,212.36,212.33,8.99665239]
[1757384520218,0.03194198,212.37,212.32,1.71665239]